{"text_format":"1","workbook":"xlsx","n_sheets":2,"sheets":["5 класс","6 класс"],"not_rendered":{"charts":0,"images":0,"macros":1,"external_links":1,"defined_names":4,"comments":0,"pivot_tables":0},"unopened":[],"bounds":{"document_bytes":16777216,"sheet_cells":100000,"rows_first":2000,"rows_last":500,"rows_between":2000,"halvings":0,"cell_chars":16384,"cell_head_chars":4096},"cells_cut":0,"cells_raw":0,"read":"whole","date_system":"1900"}

{"sheet":"5 класс","index":0,"n_rows":119,"n_cols":15,"rows_kept":119,"cut":false,"hidden":false,"merged":[[3,4,3,5]]}
[null,null,"Протокол муниципального этапа олимпиады по русскому языку для обучающихся 5-6 классов"]
[null,null,null,null,null,null,"(5 класс)"]
["Место проведения:",null,null,null,"дата проведения (ДД.ММ.ГГ):",null,null,null,"Председатель жюри"]
["МАОУ СШ № 1, г. Красноярск",null,null,null,"2024-12-18",null,null,null,"Назарова Ольга Степановна"]
["№","Район","ФИО","Название ОУ ","Класс","Шифр",1,2,3,4,5,6,"сумма баллов","Тип диплома","Педагог"]
[null,null,null,null,null,null,20,15,12,11,15,27,{"$f":"SUM(G6:L6)","v":100}]
[null,null,null,null,null,null,20,15,12,11,15,27,{"$f":"SUM(G7:L7)","v":100}]
[1,"Кировский","Воробьева А.А",null,5,532,20,15,12,0,15,27,89,null,"Миняйло Татьяна Михайловна"]
[2,"Кировский","Семёнова Е.С",null,5,524,20,14,12,2,13,27,88,null,"Асянова Людмила Анатольевна"]
[3,"Свердловский","Соколов К.С",null,5,542,20,15,11,1,14,27,88,null,"Бантыш Светлана Викторовна"]
[4,"Октябрьский","Федорова Р.С",null,5,501,20,11,12,2,15,27,87,null,"Зыкова Анна Викторовна"]
[5,"Центральный","Комарова Я.М",null,5,596,18,14,12,2,14,27,87,null,"Пудовкина Анна Юрьевна"]
[6,"Ленинский","Чегурова Я.С",null,5,536,18,11,12,2,15,27,85,null,"Степанюгина Ирина Ивановна"]
[7,"Советский","Тольбакова В.А",null,5,571,20,8,11,7,12,24,82,null,"Варламова Людмила Владимировна "]
[8,"Центральный","Ванчикова К.Б",null,5,558,12,12,12,2,15,27,80,null,"Ярош Ирина Афанасьевна"]
[9,"Советский","Красносельских С.П",null,5,590,20,10,6,1,15,26,78,null,"Григорьева Ольга Васильевна"]
[10,"Советский","Макарова А.А",null,5,587,20,0,12,2,15,27,76,null,"Золотухина Марина Алексеевна"]
[11,"Кировский","Мяконькая М.Д",null,5,514,20,11,11,0,5,27,74,null,"Мяконькая Ирина Владимировна"]
[12,"Советский","Макарюк А.Е",null,5,513,20,12,11,2,1,27,73,null,"Рогатенко Майя Николаевна"]
[13,"Советский","Кутасин М.С",null,5,533,20,0,12,1,12,27,72,null,"Рощенко Татьяна Николаевна"]
[14,"ЖД","Шелованова А.И",null,5,573,20,6,12,0,7,27,72,null,"Цветков Сергей Алексеевич"]
[15,"Советский","Мисинев А.Р",null,5,565,16,0,12,2,14,27,71,null,"Мускафиди Татьяна Константиновна"]
[16,"Советский","Кузеро С.К",null,5,557,20,9,6,0,8,26,69,null,"Федянова Елена Сергеевна"]
[17,"Советский","Пальчикова У.А",null,5,528,20,3,6,1,12,26,68,null,"Габитова Галина Александровна"]
[18,"Октябрьский","Соболев Л.А",null,5,531,10,11,12,0,6,27,66,null,"Басалаева Елена Михайловна"]
[19,"Советский","Ситнева Д.В",null,5,556,4,15,12,0,15,20,66,null,"Черепанова Елена Валентиновна"]
[20,"ЖД","Новикова М.Н",null,5,507,12,8,12,0,6,27,65,null,"Комарова Елизавета Андреевна"]
[21,"Октябрьский","Таргонская А.С",null,5,559,20,0,11,0,13,20,64,null,"Архипова Татьяна Анатольевна"]
[22,"Советский","Захарова Д.К",null,5,583,16,6,6,3,6,27,64,null,"Аливанова Анна Сергеевна"]
[23,"Октябрьский","Климов В.А",null,5,506,20,9,12,8,14,0,63,null,"Ивашкевич Светлана Михайловна"]
[24,"Октябрьский","Зайцева Е.Ю",null,5,540,20,15,11,0,15,0,61,null,"Чернова Мария Анатольевна"]
[25,"ЖД","Сафонцева В.И",null,5,504,2,9,12,0,13,23,59,null,"Дюина Елена Анатольевна"]
[26,"Октябрьский","Снеткова Н.А",null,5,521,20,14,12,0,13,0,59,null,"Петлеванная Елена Петровна"]
[27,"Ленинский","Черкай Ю.С",null,5,518,20,9,12,0,14,0,55,null,"Жук Ольга Викторовна"]
[28,"Советский","Паутова А.А",null,5,523,0,12,11,0,15,17,55,null,"Шапов Иван Сергеевич"]
[29,"Советский","Агеева А.М",null,5,562,18,6,12,0,2,17,55,null,"Самойлова Анна Викторовна"]
[30,"Советский","Степушина З.А",null,5,529,0,9,12,0,6,27,54,null,"Витютнева Нина Михайловна"]
[31,"Советский","Закружная С.Г",null,5,570,2,5,12,4,6,24,53,null,"Рамазанова Сунахунум Сулеймановна"]
[32,"Ленинский","Широбокова Д.А",null,5,508,20,7,11,8,6,0,{"$f":"SUM(G39:L39)","v":52},null,"Марушкина Ольга Аркадьевна"]
[33,"Октябрьский","Мельников М.А",null,5,537,4,11,6,2,5,24,52,null,"Шут Наталья Константиновна"]
[34,"Центральный","Кудашева К.И",null,5,547,4,0,12,2,7,27,52,null,"Браилва Да Еикторше"]
[35,"Октябрьский","Фаткудинова А.В",null,5,512,8,8,12,2,4,17,51,null,"Рубанова Юлия Александровна"]
[36,"Ленинский","Эсенаманова А.А",null,5,516,16,9,12,2,12,0,51,null,"Ваганов Игорь Юрьевич"]
[37,"Ленинский","Ляпунов В.Р",null,5,578,14,9,12,2,13,0,50,null,"Князева Екатерина Рустамовна"]
[38,"Свердловский","Калиновская В.К",null,5,585,20,5,12,8,4,0,49,null,"Лушникова Евгения Валерьевна"]
[39,"Свердловский","Чеховская У.А",null,5,553,14,5,11,0,5,14,49,null,"Погодаева Светлана Ивановна"]
[40,"Советский","Никитина А.А",null,5,503,10,5,6,1,6,20,48,null,"Ноздрина Алите Владосовна"]
[41,"Советский","Иванникова В.А",null,5,530,14,8,12,0,14,0,48,null,"Ковалькова Светлана Михайловна"]
[42,"Кировский","Жилина О.Ю",null,5,548,8,5,12,8,15,0,48,null,"Парменова Анна Юрьевна"]
[43,"Центральный","Свиязова В.А",null,5,555,20,8,6,0,14,0,48,null,"Банникова Елена Анатольевна"]
[44,"Ленинский","Нитченко Г.А",null,5,502,20,5,11,0,11,0,47,null,"Ленчук Екатерина Евгеньевна"]
[45,"Октябрьский","Царегородцева А.А",null,5,520,20,12,6,0,9,0,47,null,"Карташова Вероника Владимировна"]
[46,"Советский","Москалюк К.Д",null,5,544,20,9,5,0,13,0,47,null,"Титова Ольга Алексеевна"]
[47,"Советский","Хохлова С.А",null,5,551,0,5,11,0,4,27,47,null,"Савельева Елена Михайловна"]
[48,"Советский","Борцов И.С",null,5,579,20,9,12,2,4,0,47,null,"Моторина Елена Анатольевна"]
[49,"Центральный","Крупенько А.О",null,5,543,18,0,11,2,14,0,45,null,"Моисеева Лариса Викторовна"]
[50,"Октябрьский","Головерова Е.М",null,5,546,8,8,11,4,14,0,45,null,"Лаврентьева Наталья Викторовна"]
[51,"Советский","Любимова Д.Д",null,5,568,0,5,8,0,4,27,44,null,"Козлова Наталья Вадимиовна"]
[52,"Советский","Карпенко С.А",null,5,566,20,7,12,2,2,0,43,null,"Шалашова Татьяна Юрьевна"]
[53,"Октябрьский","Игнатович В.Е",null,5,592,0,8,11,1,6,17,43,null,"Голощапов Сергей Васильевич"]
[54,"ЖД","Хохлова С.А",null,5,550,14,0,11,2,15,0,42,null,"Дюина Елена Анатольевна"]
[55,"Ленинский","Антоненко В.А",null,5,554,10,0,11,0,4,17,42,null,"Сухомлин Оксана Николаевна"]
[56,"Советский","Рожкова А.А",null,5,563,18,2,10,8,4,0,42,null,"Кучкина Юлия Ивановна"]
[57,"Советский","Прокудина Е.А",null,5,535,16,0,6,2,3,14,41,null,"Орешкова Галина Владимировна"]
[58,"Октябрьский","Савокина А.В",null,5,552,12,9,6,0,13,0,40,null,"Князева Наталья Викторовна"]
[59,"Кировский","Ступнева С.М",null,5,586,10,8,11,2,4,5,40,null,"Мяконькая Ирина Владимировна"]
[60,"Свердловский","Землянская В.В",null,5,534,20,6,11,2,0,0,39,null,"Бантыш Светлана Викторовна"]
[61,"Краевое_учреждение","Слепков И.В",null,5,538,20,8,6,2,3,0,39,null,"Василенко Ольга Владимировна"]
[62,"Свердловский","Волосович П.М",null,5,569,20,3,0,2,14,0,39,null,"Кузнецова Наталья Александровна"]
[63,"Советский","Скворцов М.А",null,5,582,12,9,12,0,6,0,39,null,"Свежинцева Галина Геннадьевна"]
[64,"Октябрьский","Киц А.Г",null,5,574,14,10,12,2,0,0,{"$f":"SUM(G71:L71)","v":38},null,"Карташова Вероника Владимировна"]
[65,"Октябрьский","Сазанов Л.А",null,5,577,14,8,6,7,3,0,38,null,"Долгушина Наталья Аркадьевна"]
[66,"Кировский","Кацер Д.В",null,5,576,18,8,6,2,3,0,37,null,"Лефлер Наталья Анатольевна"]
[67,"Кировский","Черноусова А.Ю",null,5,595,12,10,12,0,3,0,37,null,"Фадеева Ольга Петровна"]
[68,"Краевое_учреждение","Клесова Г.Д",null,5,526,8,7,11,0,5,5,36,null,"Гаврилова Татьяна Юрьевна"]
[69,"Ленинский","Голобоков И.А",null,5,527,2,6,6,2,13,7,36,null,"Федосеева Оксана Николаевна"]
[70,"Ленинский","Шумин Е.В",null,5,560,4,11,12,2,5,0,34,null,"Князева Екатерина Рустамовна"]
[71,"Центральный","Максимчук И.А",null,5,589,0,11,6,6,11,0,34,null,"Фур Анна Васильевна"]
[72,"Свердловский","Землянская Е.В",null,5,572,12,6,11,2,2,0,33,null,"Бантыш Светлана Викторовна"]
[73,"Центральный","Коренева А.Е",null,5,522,12,0,6,0,14,0,32,null,"Попкова Жанна Владимировна"]
[74,"Ленинский","Чернышева Д.Д",null,5,505,12,0,12,2,5,0,31,null,"Князева Екатерина Рустамовна"]
[75,"Октябрьский","Вишняков Р.Р",null,5,541,16,7,6,0,2,0,31,null,"Карташова Вероника Владимировна"]
[76,"Ленинский","Портнов Б.К",null,5,511,2,7,11,0,2,7,29,null,"Дяченко Наталья Александровна"]
[77,"Советский","Супрун А.Ю",null,5,593,10,0,12,2,4,0,28,null,"Никитина Наталья Андреевна"]
[78,"Свердловский","Доржеева В.А",null,5,509,0,0,12,2,13,0,27,null,"Глушков Александр Олегович"]
[79,"Свердловский","Дунайцева А.А",null,5,545,0,9,5,0,0,13,27,null,"Когут Ирина Юрьевна"]
[80,"Советский","Потапов К.М",null,5,564,2,6,12,2,5,0,27,null,"Богданова Мария Анатольевна"]
[81,"ЖД","Исакова Е.С",null,5,525,0,8,10,2,6,0,26,null,"Руднова Светлана Юрьевна"]
[82,"Ленинский","Кискова Т.Ю",null,5,567,10,6,6,0,4,0,26,null,"Славиковская Мария Петровна"]
[83,"Кировский","Шарипова К.Ш",null,5,594,0,10,12,2,2,0,26,null,"Нестерова Екатерина Вадимовна"]
[84,"Свердловский","Макачева У.М",null,5,517,14,0,6,0,3,2,25,null,"Осипова Ирина Сергеевна"]
[85,"Кировский","Корякина Е.М",null,5,561,0,0,11,0,14,0,25,null,"Сторожева Галина Николаевна"]
[86,"Свердловский","Петрова К.А",null,5,515,12,0,12,0,0,0,24,null,"Букина Диана Дмитриевна"]
[87,"Советский","Самошкина В.А",null,5,575,12,0,6,2,4,0,24,null,"Савельева Елена Михайловна"]
[88,"Ленинский","Быков Э.А",null,5,588,6,5,12,0,1,0,24,null,"Рогозина Ольга Александровна"]
[89,"Кировский","Бывшенко А.М",null,5,591,6,8,6,0,4,0,24,null,"Ерошкина Любовь Александровна"]
[90,"Ленинский","Козельская В.А",null,5,549,2,9,10,2,0,0,23,null,"Ламыкина Антонина Георгиевна"]
[91,"Октябрьский","Хвощевский Б.О",null,5,510,14,3,0,0,4,0,21,null,"Спирина Елена Павловна"]
[92,"Кировский","Староватова А.Д",null,5,581,18,0,0,0,3,0,21,null,"Ерошкина Любовь Александровна"]
[93,"Советский","Аксенов М.А",null,5,519,0,0,6,4,4,5,19,null,"Кувеко Людмила Николаевна"]
[94,"Ленинский","Петрусев М.Д",null,5,580,2,0,6,0,3,0,11,null,"Мацкевич татьяна Павловна"]
[95,"Свердловский","Будрик Д.Д",null,5,584,0,0,0,2,2,0,4,null,"Колесникова Любовь Михайловна"]
[96,"Октябрьский","Спиридонова Е.Е",null,5,539,0,0,0,0,0,0,{"$f":"SUM(G103:L103)","v":0},null,"Федорова Анна Владимировна"]
[98,"Октябрьский",null,"МБОУ СШ № 95 г. Красноярск",5,null,null,null,null,null,null,null,0,null,"Панова Наталья Александровна"]
[99,"Кировский",null,"МАОУ СШ № 8 г. Красноярск",5,null,null,null,null,null,null,null,0,null,"Васильева Елена Алексеевна"]
[100,"Октябрьский",null,"МБОУ Лицей № 10 г. Красноярск",5,null,null,null,null,null,null,null,0,null,"Ерахтина Елена Сергеевна"]
[101,"ЖД",null,"МАОУ Гимназия № 8 г. Красноярск",5,null,null,null,null,null,null,null,0,null,"Богданова Наталья Сергеевна"]
[102,"Кировский",null,"МАОУ СШ № 90 г. Красноярск",5,null,null,null,null,null,null,null,0,null,"Гасилина Наталья Константиновна"]
[103,"Центральный",null,"МАОУ Гимназия № 2 г. Красноярск",5,null,null,null,null,null,null,null,0,null,"Копылова Вера Александровна"]
[104,"Ленинский",null,"МАОУ Лицей № 12 г. Красноярск",5,null,null,null,null,null,null,null,0,null,"Шрамкова Раиса Николаевна"]
[105,"Советский",null,"МАОУ СШ № 156 г. Красноярск",5,null,null,null,null,null,null,null,0,null,"Казанчеева Анастасия Николаевна"]
[106,"Кировский",null,"МАОУ Лицей № 11 г. Красноярск",5,null,null,null,null,null,null,null,0,null,"Моисеева Юлия Викторовна"]
[107,"Кировский",null,"МАОУ СШ № 46 г. Красноярск",5,null,null,null,null,null,null,null,0,null,"Третьякова Екатерина Валерьевна"]
[108,"Краевое_учреждение",null,"КГБОУ «Красноярская школа № 1» г. Красноярск",5,null,null,null,null,null,null,null,0,null,"Гришаева Елена Александровна"]
[109,"Ленинский",null,"МБОУ СШ № 44 г. Красноярск",5,null,null,null,null,null,null,null,0,null,"Бордунова Ирина Валентиновна"]
[110,"Советский",null,"МАОУ СШ № 129 г. Красноярск",5,null,null,null,null,null,null,null,0,null,"Сидорович Ирина Александровна"]
[111,"Октябрьский",null,"МАОУ СШ № 72 им. М.Н. Толстихина г. Красноярск",5,null,null,null,null,null,null,null,0,null,"Уфимцева Ирина Викторовна"]
[112,"Кировский",null,"МАОУ Лицей № 6 «Перспектива» г. Красноярск",5,null,null,null,null,null,null,null,0,null,"Антипова Ольга Владимировна"]
[114,"Советский",null,"МАОУ СШ № 143 г. Красноярск",5,null,null,null,null,null,null,null,0,null,"Ефимова Лариса Михайловна"]

{"sheet":"6 класс","index":1,"n_rows":134,"n_cols":15,"rows_kept":134,"cut":false,"hidden":false,"merged":[[3,4,3,5]]}
[null,null,"Протокол муниципального этапа олимпиады по русскому языку для обучающихся 5-6 классов"]
[null,null,null,null,null,null,"(6 класс)"]
["Место проведения:",null,null,null,"дата проведения (ДД.ММ.ГГ):",null,null,null,"Председатель жюри"]
["МАОУ СШ № 1, г. Красноярск",null,null,null,"2024-12-18",null,null,null,"Назарова Ольга Степановна"]
["№","Район","ФИО","Название ОУ ","Класс","Шифр",1,2,3,4,5,6,"сумма баллов","Тип диплома","Педагог"]
[null,null,null,null,null,null,8,20,14,15,16,27,{"$f":"SUM(G6:L6)","v":100}]
[1,"Свердловский","Мергер м.А","МАОУ Лицей № 9 «Лидер» имени А.М. Клешко г. Красноярск",6,631,6,16,8,4,14,27,75,null,"Гейман Ирина Гарриевна"]
[2,"Советский","Федосеенко В.Н","МАОУ СШ № 141 г. Красноярск",6,689,8,16,14,2,14,20,74,null,"Семащенко Татьяна Николаевна"]
[3,"Свердловский","Косых Т.А","МАОУ СШ № 137 г. Красноярск",6,692,8,14,8,10,10,24,74,null,"Крипан Наталья Юрьевна"]
[4,"Советский","Докучаева А.С","МАОУ СШ № 98 г. Красноярск",6,674,8,20,14,10,12,7,71,null,"Скрипченко Людмила Михайловна"]
[5,"Свердловский","Петухова М.В","МАОУ СШ № 6 г. Красноярск",6,6115,8,18,14,6,8,16,70,null,"Кабашева Оксана Леонидовна"]
[6,"Октябрьский","Мартынова Е.С","МБОУ СШ № 99 г. Красноярск",6,647,8,14,8,10,14,15,69,null,"Козлова Анжелика Дмитриевна"]
[7,"Кировский","Петрова П.Д","МАОУ СШ № 8 г. Красноярск",6,627,6,10,6,12,16,16,66,null,"Калюжина Людмила Николаевна"]
[8,"Советский","Лебедев И.М","МАОУ СШ № 7 г. Красноярск",6,668,6,14,8,14,16,7,65,null,"Рощенко Татьяна Николаевна"]
[9,"ЖД","Космодемьянская К.П","МАОУ СШ № 32 г. Красноярск",6,604,8,8,3,11,10,23,63,null,"Серкова Анна Андреевна"]
[10,"ЖД","Кравченко И.О","МАОУ СШ № 19 г. Красноярск",6,635,4,16,8,6,14,15,63,null,"Снопко Инна Станиславовна"]
[11,"Краевое_учреждение","Нущик Б.Н","КГБОУ Красноярский КК г. Красноярск",6,654,2,14,10,4,12,20,62,null,"Воробьёва Наталья Валерьевна"]
[12,"Советский","Веженко В.А","МАОУ СШ № 115 г. Красноярск",6,624,4,10,9,6,14,15,58,null,"Моторина Елена Анатольевна"]
[13,"Кировский","Равдель Д.Е","МАОУ Гимназия № 6 г. Красноярск",6,678,8,14,9,9,12,6,58,null,"Семенова Светлана Леонидовна"]
[14,"Краевое_учреждение","Жила А.Е","КГБОУ Красноярская МЖГИ г. Красноярск",6,653,6,10,12,2,14,13,57,null,"Васильева Галина Сергеевна"]
[15,"Свердловский","Ставицкая М.С","МАОУ СШ № 45 г. Красноярск",6,6106,4,14,11,2,8,17,56,null,"Косых Надежда Николавеан"]
[16,"Советский","Калашникова В.А","МАОУ СШ № 121 г. Красноярск",6,601,8,12,9,13,8,5,55,null,"Гуменко Алина Анатольевна"]
[17,"Советский","Кардашова С.С","МАОУ СШ № 66 г. Красноярск",6,698,4,16,7,0,10,18,55,null,"Заречнева Анжелика Сергеевна"]
[18,"ЖД","Снопкова Т.В","МАОУ Лицей № 7 г. Красноярск",6,6104,6,12,6,1,12,16,53,null,"Рулькова Галина Михайловна"]
[19,"Кировский","Побирский Д.М","МАОУ Гимназия № 4 г. Красноярск",6,662,0,12,6,4,14,16,52,null,"Беляева Ольга Николаевна"]
[20,"Свердловский","Стефаненко М.А","МАОУ Лицей № 9 «Лидер» имени А.М. Клешко г. Красноярск",6,694,8,14,8,10,12,0,52,null,"Купченко Марина Петровна"]
[21,"Советский","Антонов М.А","МАОУ СШ № 1 г. Красноярск",6,6107,0,16,10,11,10,4,51,null,"Орешкова Галина Владимировна"]
[22,"Кировский","Штеле М.П","МАОУ СШ № 55 г. Красноярск",6,622,4,8,14,6,8,9,49,null,"Яровикова Надежда Евгеньевна"]
[23,"Центральный","Шувалова Д.В","МАОУ Гимназия № 2 г. Красноярск",6,623,4,8,10,5,12,10,49,null,"Никифорова Оксана Анатольевна"]
[24,"Свердловский","Иконникова М.А","МАОУ СШ № 76 г. Красноярск",6,605,8,0,6,4,14,16,48,null,"Казак Людмила Петровна"]
[25,"Октябрьский","Решетникова А.Д","МАОУ Гимназия № 13 «Академ» г. Красноярск",6,6113,4,18,8,8,10,0,48,null,"Лидер Ирина Ивановна"]
[26,"Октябрьский","Семехин В.Д","МАОУ СШ № 72 им. М.Н. Толстихина г. Красноярск",6,626,6,10,4,5,12,10,47,null,"Божкова Евгения Францевна"]
[27,"Советский","Попова Д.Д","МАОУ СШ № 5 г. Красноярск",6,629,2,16,4,0,10,15,47,null,"Мускафиди Татьяна Константиновна"]
[28,"Свердловский","Арефьева В.В","МАОУ СШ № 42 г. Красноярск",6,644,0,8,6,2,8,22,46,null,"Михайлова Елена Михайловна"]
[29,"Кировский","Беляева С.А","МАОУ СШ № 63 г. Красноярск",6,669,8,16,8,4,10,0,46,null,"Ерошкина Любовь Александровна"]
[30,"Ленинский","Михайлов А.М","МБОУ СШ № 64 г. Красноярск",6,6111,8,12,4,4,12,6,46,null,"Пасикова Светлана Геннадьевна"]
[31,"Советский","Снурникова М.В","МАОУ СШ № 24 г. Красноярск",6,672,0,8,9,5,8,15,45,null,"Трушкова Инна Николаевна"]
[32,"Октябрьский","Вагизова Д.Р","МАОУ «КУГ № 1 – Универс» г. Красноярск",6,6103,0,16,11,0,10,8,{"$f":"SUM(G38:L38)","v":45},null,"Тарасова Юлия Александровна"]
[33,"Советский","Салехов Б.Р","МАОУ СШ № 157 г. Красноярск",6,673,0,6,6,0,14,18,44,null,"Жевлакова Дарья Анатольевна"]
[34,"Свердловский","Богушевская Д.В","МАОУ Гимназия № 14 г. Красноярск",6,603,8,14,3,6,8,4,43,null,"Яковлева Екатерина Сергеевна"]
[35,"Ленинский","Кудряшова Э.А","МАОУ Гимназия № 15 г. Красноярск",6,658,0,14,6,2,6,15,43,null,"Троицкая Наталья Петровна"]
[36,"Советский","Власов Г.А","МАОУ СШ № 91 г. Красноярск",6,679,0,0,6,8,16,13,43,null,"Камина Светлана Владимировна"]
[37,"Центральный","Квятковский К.А","МБОУ СШ № 155 г. Красноярск",6,638,4,10,0,2,12,14,42,null,"Кабанец Юлия Викторовна"]
[38,"Центральный","Валиуллина Т.Д","МБОУ СОШ № 10 г. Красноярск",6,640,2,12,11,7,10,0,42,null,"Лунева Елена Викторовна"]
[39,"Советский","Рождественская Е.Р","МАОУ СШ № 152 г. Красноярск",6,641,0,8,11,6,10,7,42,null,"Гохнадель Елена Иоганесовна"]
[40,"Советский","Рау М.С","МАОУ СШ № 150 г. Красноярск",6,696,4,18,9,0,10,0,41,null,"Ухолова Ольга Николаевна"]
[41,"Советский","Быкова У.К","МАОУ СШ № 145 г. Красноярск",6,619,6,10,6,0,14,4,40,null,"Рымарчук Галина Ивановна"]
[42,"Советский","Чертусёв Т.З","МБОУ СШ № 56 г. Красноярск",6,643,6,14,6,4,10,0,40,null,"Дарочкина Алиса Александровна"]
[43,"Советский","Пичуркина М.А","МАОУ СШ № 151 г. Красноярск",6,651,4,7,10,7,10,2,40,null,"Колупаева Марина Владимировна"]
[44,"Октябрьский","Малярчук С.В","МАОУ СШ № 82 г. Красноярск",6,657,8,0,14,6,12,0,40,null,"Лаврентьева Наталья Викторовна"]
[45,"Советский","Савельева В.С","МАОУ СШ № 1 г. Красноярск",6,684,6,8,9,1,10,6,40,null,"Гойда Татьяна Евгеньевна"]
[46,"Октябрьский","Иванов Л.Е","МБОУ Гимназия № 3 г. Красноярск",6,695,6,0,2,7,14,11,40,null,"Голощапов Сергей Васильевич"]
[47,"Ленинский","Семенкова А.Н","МАОУ Лицей № 12 г. Красноярск",6,6102,8,0,8,4,12,8,40,null,"Мацкевич Татьяна Павловна"]
[48,"Октябрьский","Чухонцева Д.В","МАОУ СШ № 3 г. Красноярск",6,616,6,8,0,6,12,7,39,null,"Яруллина Алла Викторовна"]
[49,"Центральный","Бажанова Т.А","МБОУ СШ № 4 г. Красноярск",6,633,0,12,4,0,8,15,39,null,"Пудовкина Анна Юрьевна"]
[50,"Советский","Дрожжина А.А","МАОУ СШ № 139 г. Красноярск",6,652,0,8,10,5,10,5,38,null,"Садихова Элона Джеферовна"]
[51,"Советский","Лобанова С.А","МАОУ СШ № 143 г. Красноярск",6,6117,0,16,11,1,10,0,38,null,"Аливанова Анна Сергеевна"]
[52,"Центральный","Кухарь А.Р","МБОУ Гимназия № 16 г. Красноярск",6,610,4,10,6,5,12,0,37,null,"Сахарова Татьяна Яковлевна"]
[53,"Советский","Ракецкая С.К","МАОУ СШ № 154 г. Красноярск",6,687,6,0,9,2,12,8,37,null,"Рамазанова Сунахунум Сулеймановна"]
[54,"Ленинский","Гизатулин Т.Д","МБОУ СШ № 64 г. Красноярск",6,621,6,0,4,3,12,11,36,null,"Пасикова Светлана Геннадьевна"]
[55,"Советский","Дрожжина Д.А","МАОУ СШ № 139 г. Красноярск",6,639,6,0,4,3,8,15,36,null,"Садихова Элона Джеферовна"]
[56,"Ленинский","Болгова А.Д","МАОУ СШ № 65 г. Красноярск",6,612,0,8,3,4,12,8,35,null,"Моргель Ольга Богдановна"]
[57,"ЖД","Кусинова А.Д","МБОУ СШ № 86 г. Красноярск",6,630,2,0,3,6,12,12,35,null,"Зайченко Оксана Владимировна"]
[58,"Свердловский","Озерова В.И","МАОУ СШ № 17 г. Красноярск",6,608,8,8,8,0,10,0,34,null,"Афанасьева Елена Леонидовна"]
[59,"Ленинский","Ахмедов Э.Б","МБОУ СШ № 31 г. Красноярск",6,606,8,8,0,5,12,0,33,null,"Евдокимова Ирина Игоревна"]
[60,"Кировский","Черноок Р.Б","МАОУ СШ № 55 г. Красноярск",6,650,8,0,5,0,8,12,33,null,"Пилипенко Татьяна Владимировна"]
[61,"Кировский","Зайцев Р.Д","МАОУ СШ № 46 г. Красноярск",6,609,4,12,2,8,6,0,32,null,"Курова Олеся Павловна"]
[62,"Октябрьский","Розикова А.Ф","МБОУ Лицей № 8 г. Красноярск",6,656,6,0,2,3,8,12,31,null,"Меркель Алена Александровна"]
[63,"Советский","Новосёлова В.А","МАОУ СШ № 113  г. Красноярск",6,665,0,0,14,9,8,0,31,null,"Панкова Эльвира Олеговна"]
[64,"Ленинский","Вершинина У.В","МАОУ Гимназия № 15 г. Красноярск",6,659,0,0,14,4,12,0,{"$f":"SUM(G70:L70)","v":30},null,"Троицкая Наталья Петровна"]
[65,"Октябрьский","Андреев А.А","МАОУ Лицей № 1 г. Красноярск",6,660,0,0,12,6,12,0,30,null,"Арепьева Полина Викторовна"]
[66,"Кировский","Билле А.В","МАОУ Лицей № 6 «Перспектива» г. Красноярск",6,664,0,0,5,1,10,14,30,null,"Прядун Анна Владимировна"]
[67,"Ленинский","Полевщикова А.А","МБОУ Гимназия № 7 г. Красноярск",6,634,2,12,7,2,2,4,29,null,"Чуракова Марина Ивановна"]
[68,"Советский","Сумневич Д.С","МАОУ СШ № 18 г. Красноярск",6,637,0,10,6,5,8,0,29,null,"Золова Кристина Алексеевна"]
[69,"Октябрьский","Таскин В.А","МАОУ Гимназия № 13 «Академ» г. Красноярск",6,663,0,5,2,0,10,12,29,null,"Лидер Ирина Ивановна"]
[70,"Советский","Дмитриенко Д.Е","МАОУ СШ № 144 г. Красноярск",6,675,0,8,0,9,12,0,29,null,"Алиева Ольга Николаевна"]
[71,"Советский","Новикова В.Ю","МАОУ СШ № 160 г. Красноярск",6,613,8,0,9,7,0,4,28,null,"Зольникова Татьяна Андреевна"]
[72,"Советский","Щербинина В.А","МАОУ СШ № 69 г. Красноярск",6,615,0,8,5,0,8,7,28,null,"Буранкова Анастасия Александровна"]
[73,"Советский","Кернер А.Д","МАОУ СШ № 129 г. Красноярск",6,682,4,10,0,0,14,0,28,null,"Хохлова Наталья Владимировна"]
[74,"Свердловский","Давыдов Д.А","МАОУ Лицей № 9 «Лидер» имени А.М. Клешко г. Красноярск",6,697,0,10,4,4,4,6,28,null,"Гейман Ирина Гарриевна"]
[75,"Свердловский","Михадюк А.Ю","МАОУ СШ № 45 г. Красноярск",6,649,8,0,5,3,12,0,28,null,"Каменская Юлия Сергеевна"]
[76,"ЖД","Потапова Я.Д","МАОУ Гимназия № 9 г. Красноярск",6,607,2,10,2,6,6,0,26,null,"Фан-Ди Оксана Викторовна"]
[77,"Советский","Немченко А.С","МАОУ СШ № 149 г. Красноярск",6,636,0,0,8,5,8,5,26,null,"Набокова Лариса Семёновна"]
[78,"Ленинский","Путинцев А.А","МБОУ СШ № 64 г. Красноярск",6,645,2,8,2,4,10,0,26,null,"Пасикова Светлана Геннадьевна"]
[79,"Ленинский","Каргаполова К.К","МАОУ СШ № 53 г. Красноярск",6,690,4,8,6,0,8,0,26,null,"Галкина Светлана Александровна"]
[80,"Советский","Кашкарева Д.Л","МАОУ СШ № 156 г. Красноярск",6,6112,0,8,4,2,12,0,26,null,"Уколова Елизавета Сергеевна"]
[81,"Ленинский","Кушнир М.А","МБОУ СШ № 94 г. Красноярск",6,6108,4,0,6,5,0,10,25,null,"Зайцева Марина Дмитриевна"]
[82,"Октябрьский","Миненкова М.М","МАОУ СШ № 21 г. Красноярск",6,6116,2,10,2,0,8,3,25,null,"Готовчикова Евгения Юрьевна"]
[83,"Свердловский","Широких Е.А","МАОУ СШ № 45 г. Красноярск",6,666,2,2,4,0,8,8,24,null,"Косых Надежда Николавеан"]
[84,"Кировский","Шкурская Д.А","МАОУ СШ № 90 г. Красноярск",6,681,6,6,2,2,8,0,24,null,"Щепина Валентина Владимировна"]
[85,"Ленинский","Бабаедова П.Д","МАОУ Гимназия № 15 г. Красноярск",6,688,4,10,2,0,8,0,24,null,"Троицкая Наталья Петровна"]
[86,"Октябрьский","Тропина К.Д","МБОУ СШ № 36 г. Красноярск",6,699,4,12,0,0,8,0,24,null,"Рыбникова Наталья Владимировна"]
[87,"Кировский","Харламов А.А","МАОУ Гимназия № 10 г. Красноярск",6,655,4,0,5,4,10,0,23,null,"Макаренко Варвара Михайловна"]
[88,"Ленинский","Снисаренко М.Л","МБОУ СШ № 13 г. Красноярск",6,686,0,0,11,0,12,0,23,null,"Вернер Ольга Викторовна"]
[89,"Свердловский","Луговая Е.В","МАОУ СШ № 45 г. Красноярск",6,620,4,4,3,0,6,5,22,null,"Косых Надежда Николавеан"]
[90,"Советский","Шилова Е.А","МАОУ СШ № 160 г. Красноярск",6,667,4,3,5,2,8,0,22,null,"Зольникова Татьяна Андреевна"]
[91,"Октябрьский","Ненартович К.Г","МБОУ СШ № 84 г. Красноярск",6,685,0,6,2,4,10,0,22,null,"Ремиханова Альбина Рамизовна"]
[92,"Октябрьский","Русина Д.П","МАОУ школа-интернат № 1 г. Красноярск",6,625,0,6,3,4,8,0,21,null,"Петрова Татьяна Викторовна"]
[93,"Октябрьский","Кононова Д.Д","МАОУ Гимназия № 13 «Академ» г. Красноярск",6,602,0,0,1,3,12,4,20,null,"Панова Юлия Николаевна"]
[94,"Советский","Кузнецова А.А","МАОУ СШ № 69 г. Красноярск",6,646,0,12,6,2,0,0,20,null,"Буранкова Анастасия Александровна"]
[95,"Свердловский","Близневский В.В","МАОУ СШ № 34 г. Красноярск",6,632,0,8,3,2,6,0,19,null,"Дьякова Марина Геннадьевна"]
[96,"Ленинский","Черепанова П.А","МБОУ СШ № 79 г. Красноярск",6,614,4,2,2,2,8,0,{"$f":"SUM(G102:L102)","v":18},null,"Коренская Анастасия Ивановна"]
[97,"Октябрьский","Руденко М.Д","МАОУ СШ № 159 г. Красноярск",6,670,0,0,3,3,12,0,18,null,"Будникова Любовь Олеговна"]
[98,"Советский","Нургалиева А.М","МАОУ СШ № 69 г. Красноярск",6,6109,4,2,2,2,8,0,18,null,"Ефимова Арина Валерьевна"]
[99,"Свердловский","Кондратовская Е.А","МАОУ СШ № 45 г. Красноярск",6,680,0,0,5,0,8,4,17,null,"Глушков Александр Олегович"]
[100,"Октябрьский","Юшков А.А","МБОУ СШ № 133 г. Красноярск",6,6105,0,0,2,8,4,3,17,null,"Шут Наталья Константиновна"]
[101,"Советский","Шефер А.А","МАОУ СШ № 129 г. Красноярск",6,628,4,0,0,0,12,0,16,null,"Хохлова Наталья Владимировна"]
[102,"Кировский","Гаврик Д.А","МАОУ Лицей № 11 г. Красноярск",6,648,8,6,0,0,2,0,16,null,"Чернова Марина Александровна"]
[103,"Свердловский","Халифаев А.М","МАОУ СШ № 34 г. Красноярск",6,661,0,0,4,0,8,4,16,null,"Дьякова Марина Геннадьевна"]
[104,"Кировский","Сухотина А.В","МАОУ СШ № 81 г. Красноярск",6,693,0,0,0,0,16,0,16,null,"Головина Алена Александровна"]
[105,"Свердловский","Зубарева Е.С","МАОУ СШ № 93 г. Красноярск",6,6110,4,0,0,2,10,0,16,null,"Мартен Ольга Богдановна"]
[106,"Советский","Морокина Д.А","МАОУ СШ № 69 г. Красноярск",6,6100,0,0,7,0,8,0,15,null,"Ефимова Арина Валерьевна"]
[107,"Свердловский","Генатулин А.Ю","МАОУ СШ № 45 г. Красноярск",6,618,0,0,3,3,6,0,12,null,"Косых Надежда Николавеан"]
[108,"Центральный","Селиванов Р.А","МАОУ СШ «Комплекс Покровский» г. Красноярск",6,642,4,0,0,2,6,0,12,null,"Селиванова Валентина Стефановна"]
[109,"Свердловский","Асроров М.Ф","МАОУ СШ № 78 г. Красноярск",6,691,0,0,0,0,6,6,12,null,"Почепнева Ольга Олеговна "]
[110,"Ленинский","Енина К.О","МАОУ Гимназия № 15 г. Красноярск",6,617,0,0,4,0,6,0,10,null,"Троицкая Наталья Петровна"]
[111,"Свердловский","Ковинова И.Д","МАОУ СШ № 34 г. Красноярск",6,611,2,0,1,0,6,0,9,null,"Дьякова Марина Геннадьевна"]
[112,"Кировский","Голубь А.М","МАОУ Гимназия № 10 г. Красноярск",6,6114,0,0,5,0,2,0,7,null,"Макаренко Варвара Михайловна"]
[113,"Советский","Сараева А.А","МАОУ СШ № 160 г. Красноярск",6,671,0,0,0,0,6,0,6,null,"Зольникова Татьяна Андреевна"]
[114,"Ленинский","Давлатерова М.Н","МАОУ СШ № 148 г. Красноярск",6,683,0,0,0,0,0,5,5,null,"Степанчёнок Виктория Маиловна"]
[115,"Свердловский","Шкловский Ф.В","МАОУ СШ № 42 г. Красноярск",6,6101,0,0,0,0,0,0,0,null,"Фадеева Анастасия Евгеньевна"]
[116,"Свердловский",null,"МБОУ СШ № 62 г. Красноярск",6,null,null,null,null,null,null,null,0,null,"Пронина Ксения Алексеевна"]
[117,"ЖД",null,"МАОУ Лицей № 28 г. Красноярск",6,null,null,null,null,null,null,null,0,null,"Жукова Юлия Владимировна"]
[118,"Советский",null,"МАОУ СШ № 69 г. Красноярск",6,null,null,null,null,null,null,null,0,null,"Буранкова Анастасия Александровна"]
[120,"ЖД",null,"МАОУ Лицей № 28 г. Красноярск",6,null,null,null,null,null,null,null,0,null,"Субачева Людмила Андреевна"]
[121,"Ленинский",null,"МБОУ СШ № 44 г. Красноярск",6,null,null,null,null,null,null,null,0,null,"Зеленская Светлана Владимировна"]
[122,"Октябрьский",null,"МАОУ Гимназия № 13 «Академ» г. Красноярск",6,null,null,null,null,null,null,null,0,null,"Карась Юлия Андреевна"]
[123,"Советский",null,"МАОУ СШ № 147 г. Красноярск",6,null,null,null,null,null,null,null,0,null,"Никитенко Татьяна Николаевна"]
[124,"Октябрьский",null,"МБОУ Лицей № 10 г. Красноярск",6,null,null,null,null,null,null,null,0,null,"Фокина Александра Витальевна"]
[126,"Советский",null,"МАОУ СШ № 69 г. Красноярск",6,null,null,null,null,null,null,null,0,null,"Хусаинова Ольга Дмитриевна"]
[127,"Ленинский",null,"МАОУ Гимназия № 15 г. Красноярск",6,null,null,null,null,null,null,null,0,null,"Князева Екатерина Рустамовна"]
[128,"ЖД",null,"МАОУ Гимназия № 8 г. Красноярск",6,null,null,null,null,null,null,null,{"$f":"SUM(G132:L132)","v":0},null,"Богданова Наталья Сергеевна"]
[131,"Октябрьский",null,"МБОУ СШ № 95 г. Красноярск",6,null,null,null,null,null,null,null,0,null,"Панова Наталья Александровна"]
[132,"Ленинский",null,"МБОУ СШ № 44 г. Красноярск",6,null,null,null,null,null,null,null,0,null,"Бордунова Ирина Валентиновна"]